fUSD/lending_fUSD_20240301
["ID","MTS","AMOUNT","RATE_DAILY","PERIOD"]
[315905599,1709260795947,500.0,0.00022191,2]
[315905600,1709260796017,1104.81,0.00021917,2]
[315905601,1709260796060,354.2662,0.00022023,2]
[315905602,1709260796404,500.0,0.00022191,2]
[315905603,1709260796772,1104.81,0.00022191,2]
[315905604,1709260799981,500.0,0.00021917,2]
[315905605,1709260800309,500.0,0.00022191,2]
[315905606,1709260801186,439.24770787,0.00021917,2]
[315905607,1709260801257,572.09,0.00021917,2]
[315905608,1709260801371,500.0,0.00021917,2]
[315905609,1709260801581,572.09,0.00022191,2]
[315905610,1709260801731,500.0,0.00022191,2]
[315905611,1709260802169,500.0,0.00021917,2]
[315905612,1709260802410,2278.8,0.00021917,2]
[315905613,1709260802556,500.0,0.00022191,2]
[315905614,1709260802896,500.0,0.00021917,2]
[315905615,1709260803003,2278.8,0.00022191,2]
[315905616,1709260803273,500.0,0.00022191,2]
[315905617,1709260803352,984.88,0.00021917,2]
[315905618,1709260803675,984.88,0.00022191,2]
[315905619,1709260805336,500.0,0.00021917,2]
[315905620,1709260805856,500.0,0.00022191,2]
[315905621,1709260806939,500.0,0.00021917,2]
[315905622,1709260807153,200.0,0.000222,2]
[315905623,1709260807547,500.0,0.00022191,2]
[315905624,1709260808315,1652.11,0.00021917,2]
[315905625,1709260808401,1652.11,0.00022191,2]
[315905626,1709260809741,604.46,0.00021917,2]
[315905627,1709260810559,604.46,0.00022191,2]
[315905628,1709260810740,500.0,0.00022126,2]
[315905629,1709260811759,500.0,0.00021917,2]
[315905630,1709260812136,500.0,0.00022191,2]
[315905631,1709260813153,500.0,0.00021917,2]
[315905632,1709260813392,500.0,0.00021917,2]
[315905633,1709260813513,500.0,0.00022191,2]
[315905634,1709260813704,500.0,0.00022191,2]
[315905635,1709260813795,500.0,0.00021917,2]
[315905636,1709260813977,500.0,0.00022191,2]
[315905637,1709260814135,3364.3,0.00021917,2]
[315905638,1709260814408,500.0,0.00021917,2]
[315905639,1709260814437,3364.3,0.00022191,2]
[315905640,1709260814589,500.0,0.00022126,2]
[315905641,1709260814758,500.0,0.00022191,2]
[315905642,1709260818039,1461.56,0.00021917,2]
[315905643,1709260818287,1461.56,0.00022191,2]
[315905644,1709260818916,1397.94,0.00021917,2]
[315905645,1709260818964,500.0,0.00021917,2]
[315905646,1709260819071,1397.94,0.00022191,2]
[315905647,1709260819172,439.24770787,0.00022191,2]
[315905648,1709260819423,500.0,0.00022191,2]
[315905649,1709260821426,1069.77,0.00021917,2]
[315905650,1709260821524,633.17,0.00022126,2]
[315905651,1709260821715,1069.77,0.00022191,2]
[315905652,1709260822218,500.0,0.00021917,2]
[315905653,1709260822907,500.0,0.00022191,2]
[315905654,1709260823156,501.44,0.00021917,2]
[315905655,1709260823430,500.0,0.00021917,2]
[315905656,1709260823473,501.44,0.00022191,2]
[315905657,1709260823736,500.0,0.00022126,2]
[315905658,1709260823784,500.0,0.00022191,2]
[315905659,1709260824303,597.83,0.00021917,2]
[315905660,1709260824591,597.83,0.00022191,2]
[315905661,1709260825221,500.0,0.00021917,2]
[315905662,1709260825514,500.0,0.00022191,2]
[315905663,1709260826883,500.0,0.00021917,2]
[315905664,1709260827473,500.0,0.00022191,2]
[315905665,1709260828135,648.63,0.00021917,2]
[315905666,1709260828230,648.63,0.00022191,2]
[315905667,1709260829329,921.63,0.00021917,2]
[315905668,1709260829540,921.63,0.00022191,2]
[315905669,1709260830651,500.0,0.00022126,2]
[315905670,1709260832234,500.0,0.00021917,2]
[315905671,1709260832496,500.0,0.00022191,2]
[315905672,1709260833901,2407.43,0.00021917,2]
[315905673,1709260834059,2407.43,0.00022191,2]
[315905674,1709260834217,633.4,0.00021917,2]
[315905675,1709260834536,675.2,0.00022126,2]
[315905676,1709260834633,622.68,0.00021917,2]
[315905677,1709260834664,633.4,0.00022191,2]
[315905678,1709260834796,500.0,0.00021917,2]
[315905679,1709260834914,622.68,0.00022191,2]
[315905680,1709260835078,500.0,0.00022191,2]
[315905681,1709260835188,439.24770787,0.00022191,2]
[315905682,1709260836166,1804.78,0.00021917,2]
[315905683,1709260836444,1804.78,0.00022191,2]
[315905684,1709260836953,500.0,0.00022126,2]
[315905685,1709260837715,345.05385753,0.00021917,2]
[315905686,1709260840643,2894.11,0.00021917,2]
[315905687,1709260840708,670.9,0.00021917,2]
[315905688,1709260840978,2894.11,0.00022191,2]
[315905689,1709260841059,670.9,0.00022191,2]
[315905690,1709260841824,5500.0,0.000219,2]
[315905691,1709260842095,539.02,0.00021917,2]
[315905692,1709260842514,539.02,0.00022191,2]
[315905693,1709260843975,500.0,0.00021917,2]
[315905694,1709260844326,500.0,0.00022191,2]
[315905695,1709260844485,912.16,0.00021917,2]
[315905696,1709260845516,912.16,0.00022191,2]
[315905697,1709260845546,500.0,0.00021917,2]
[315905698,1709260845831,500.0,0.00022191,2]
[315905699,1709260846677,500.0,0.00022126,2]
[315905700,1709260846754,500.0,0.00021917,2]
[315905701,1709260846793,745.25,0.00022126,2]
[315905702,1709260847115,500.0,0.00022191,2]
[315905703,1709260848214,500.0,0.00021917,2]
[315905704,1709260848521,500.0,0.00022191,2]
[315905705,1709260848697,1054.88,0.00021917,2]
[315905706,1709260849398,1054.88,0.00022191,2]
[315905707,1709260850076,1350.62,0.00021917,2]
[315905708,1709260850135,1350.62,0.00022191,2]
[315905709,1709260853176,439.24770787,0.00022191,2]
[315905710,1709260853725,500.0,0.00021917,2]
[315905711,1709260854426,500.0,0.00021917,2]
[315905712,1709260854533,363.90797229,0.00021916,2]
[315905713,1709260854694,500.0,0.00022191,2]
[315905714,1709260854951,500.0,0.00022191,2]
[315905715,1709260855360,500.0,0.00021917,2]
[315905716,1709260856020,500.0,0.00022191,2]
[315905717,1709260856881,500.0,0.00021917,2]
[315905718,1709260857173,500.0,0.00022191,2]
[315905719,1709260857237,500.0,0.00021917,2]
[315905720,1709260857520,500.0,0.00022191,2]
[315905721,1709260857589,580.01,0.00022126,2]
[315905722,1709260858120,773.65,0.00021917,2]
[315905723,1709260858791,-151.0,0.00026794,120]
[315905724,1709260858834,-151.0,0.0002734,30]
[315905725,1709260858888,-22800.92579623,0.00028,30]
[315905726,1709260858909,-1529.80012276,0.00028,30]
[315905727,1709260858929,-1578.03552924,0.00028219,30]
[315905728,1709260858956,-23882.16364394,0.000283,30]
[315905729,1709260858985,-258645.58869231,0.000289,30]
[315905730,1709260859005,-200.0,0.000289,120]
[315905731,1709260859027,-600.0,0.00029,30]
[315905732,1709260859047,-2000.0,0.00029,30]
[315905733,1709260859067,-8463.89067492,0.00029,30]
[315905734,1709260859094,-302876.47643628,0.000295,30]
[315905735,1709260859114,-62648.71599396,0.000295,30]
[315905736,1709260859132,-200.0,0.000295,120]
[315905737,1709260859167,-38511.47886746,0.0003,30]
[315905738,1709260859186,-567.10611335,0.0003,30]
[315905739,1709260859206,-88415.56592471,0.0003,30]
[315905740,1709260859226,-3000.0,0.0003,30]
[315905741,1709260859247,-600.0,0.0003,31]
[315905742,1709260859268,-1195.6182857,0.0003,30]
[315905743,1709260859289,-352070.19395474,0.0003,30]
[315905744,1709260859330,500.0,0.00021917,2]
[315905745,1709260859388,773.65,0.00022191,2]
[315905746,1709260859415,500.0,0.00022191,2]
[315905747,1709260859576,500.0,0.00022126,2]
[315905748,1709260860523,775.76,0.00021917,2]
[315905749,1709260860567,1650.92,0.00021917,2]
[315905750,1709260860608,775.76,0.00022191,2]
[315905751,1709260860842,1650.92,0.00022191,2]
[315905752,1709260861071,942.04,0.00021917,2]
[315905753,1709260861338,942.04,0.00022191,2]
[315905754,1709260861985,500.0,0.00021917,2]
[315905755,1709260862279,500.0,0.00022191,2]
[315905756,1709260863173,500.0,0.00022126,2]
[315905757,1709260863466,500.0,0.00021917,2]
[315905758,1709260864126,500.0,0.00022191,2]
[315905759,1709260866358,500.0,0.00021917,2]
[315905760,1709260866411,868.12,0.00021917,2]
[315905761,1709260866443,1972.86,0.00021917,2]
[315905762,1709260866762,868.12,0.00022191,2]
[315905763,1709260867173,1972.86,0.00022191,2]
[315905764,1709260867416,500.0,0.00022191,2]
[315905765,1709260867605,500.0,0.0003,30]
[315905766,1709260867948,500.0,0.00021917,2]
[315905767,1709260868180,472.32718189,0.0003,30]
[315905768,1709260868223,500.0,0.00022191,2]
[315905769,1709260868643,1460.66,0.00022126,2]
[315905770,1709260868672,500.0,0.00021917,2]
[315905771,1709260869034,500.0,0.00022191,2]
[315905772,1709260869176,211.72305481,0.00021917,2]
[315905773,1709260871423,1152.65,0.00021917,2]
[315905774,1709260871796,1152.65,0.00022191,2]
[315905775,1709260872546,500.0,0.00021917,2]
[315905776,1709260872825,500.0,0.00022191,2]
[315905777,1709260872853,1578.28559123,0.00028219,30]
[315905778,1709260874942,1221.33,0.00021917,2]
[315905779,1709260874972,38517.40165992,0.0003,30]
[315905780,1709260875179,1221.33,0.00022191,2]
[315905781,1709260875274,1492.43,0.00021917,2]
[315905782,1709260875609,1492.43,0.00022191,2]
[315905783,1709260877207,500.0,0.00021917,2]
[315905784,1709260877447,500.0,0.00021917,2]
[315905785,1709260877543,500.0,0.00022191,2]
[315905786,1709260877734,500.0,0.00022191,2]
[315905787,1709260878863,8000.0,0.000219,2]
[315905788,1709260879378,500.0,0.00021917,2]
[315905789,1709260879790,500.0,0.00022191,2]
[315905790,1709260881366,503.81,0.00022126,2]
[315905791,1709260882383,5399.98,0.00021917,2]
[315905792,1709260882872,5399.98,0.00022191,2]
[315905793,1709260883526,888.35,0.00021917,2]
[315905794,1709260883881,888.35,0.00022191,2]
[315905795,1709260884864,500.0,0.00021917,2]
[315905796,1709260885163,500.0,0.00022191,2]
[315905797,1709260885749,500.0,0.00021917,2]
[315905798,1709260885838,500.0,0.00022191,2]
[315905799,1709260887550,500.0,0.00021917,2]
[315905800,1709260887666,258685.95166844,0.000289,30]
[315905801,1709260888063,500.0,0.00022191,2]
[315905802,1709260889334,776.79,0.00022126,2]
[315905803,1709260889619,647.4,0.00021917,2]
[315905804,1709260889717,500.0,0.00021917,2]
[315905805,1709260889895,647.4,0.00022191,2]
[315905806,1709260889995,500.0,0.00022191,2]
[315905807,1709260890784,1578.28559123,0.00028219,30]
[315905808,1709260892313,500.0,0.00021917,2]
[315905809,1709260892452,500.0,0.00021917,2]
[315905810,1709260892612,500.0,0.00022191,2]
[315905811,1709260892737,500.0,0.00022191,2]
[315905812,1709260892772,3802.16,0.00021917,2]
[315905813,1709260893040,3802.16,0.00022191,2]
[315905814,1709260894160,618.43,0.00021917,2]
[315905815,1709260894228,500.0,0.00021917,2]
[315905816,1709260894556,618.43,0.00022191,2]
[315905817,1709260894627,500.0,0.00022191,2]
[315905818,1709260895392,1342.68,0.00021917,2]
[315905819,1709260895664,1342.68,0.00022191,2]
[315905820,1709260896518,500.0,0.00021917,2]
[315905821,1709260896788,500.0,0.00022191,2]
[315905822,1709260896875,28580.18827169,0.0003,30]
[315905823,1709260897833,500.0,0.00021917,2]
[315905824,1709260898157,500.0,0.00022191,2]
[315905825,1709260898489,500.0,0.00021917,2]
[315905826,1709260898609,688.74,0.00021917,2]
[315905827,1709260898787,500.0,0.00022191,2]
[315905828,1709260898900,688.74,0.00022191,2]
[315905829,1709260900870,641.6,0.00022126,2]
[315905830,1709260901109,2104.7,0.00021917,2]
[315905831,1709260901381,2104.7,0.00022191,2]
[315905832,1709260902524,500.0,0.00021917,2]
[315905833,1709260902712,500.0,0.00021917,2]
[315905834,1709260902891,500.0,0.00022191,2]
[315905835,1709260902940,500.0,0.00022126,2]
[315905836,1709260902976,500.0,0.00022191,2]
[315905837,1709260904070,500.0,0.00021917,2]
[315905838,1709260904204,169.37904783,0.00022151,2]
[315905839,1709260904350,500.0,0.00022191,2]
[315905840,1709260904967,405.37556836,0.00021917,2]
[315905841,1709260905608,500.0,0.00021917,2]
[315905842,1709260905825,500.0,0.00022191,2]
[315905843,1709260905899,500.0,0.00021917,2]
[315905844,1709260906542,500.0,0.00022191,2]
[315905845,1709260907113,842.74,0.00021917,2]
[315905846,1709260907442,842.74,0.00022191,2]
[315905847,1709260907479,2047.1,0.00021917,2]
[315905848,1709260908095,2047.1,0.00022191,2]
[315905849,1709260910125,169.37904782,0.00022165,2]
[315905850,1709260911335,500.0,0.00021917,2]
[315905851,1709260911503,970.35,0.00022126,2]
[315905852,1709260911576,500.0,0.00021917,2]
[315905853,1709260911614,500.0,0.00022191,2]
[315905854,1709260911841,500.0,0.00022191,2]
[315905855,1709260912638,565.63,0.00021917,2]
[315905856,1709260912815,565.63,0.00022191,2]
[315905857,1709260913483,500.0,0.00021917,2]
[315905858,1709260913876,169.3070077,0.00022191,2]
[315905859,1709260914779,500.0,0.00021917,2]
[315905860,1709260915319,1333.35,0.00021917,2]
[315905861,1709260915381,500.0,0.00022191,2]
[315905862,1709260915644,1333.35,0.00022191,2]
[315905863,1709260916153,169.37904782,0.00022179,2]
[315905864,1709260916909,500.0,0.00022126,2]
[315905865,1709260917438,893.26,0.00021917,2]
[315905866,1709260917761,893.26,0.00022191,2]
[315905867,1709260918594,500.0,0.00021917,2]
[315905868,1709260918754,1304.77,0.00021917,2]
[315905869,1709260918874,500.0,0.00022191,2]
[315905870,1709260918967,500.0,0.00021917,2]
[315905871,1709260919015,500.0,0.00021917,2]
[315905872,1709260919244,500.0,0.00022191,2]
[315905873,1709260919324,500.0,0.00022191,2]
[315905874,1709260919520,1304.77,0.00022191,2]
[315905875,1709260921076,363.90797229,0.00021916,2]
[315905876,1709260922989,500.0,0.00022126,2]
[315905877,1709260923736,500.0,0.00021917,2]
[315905878,1709260924384,500.0,0.00022191,2]
[315905879,1709260925756,1345.84,0.00022126,2]
[315905880,1709260925834,455.63365799,0.00021917,2]
[315905881,1709260926360,500.0,0.00021917,2]
[315905882,1709260926775,500.0,0.00022191,2]
[315905883,1709260927324,500.0,0.00022126,2]
[315905884,1709260929119,500.0,0.00021917,2]
[315905885,1709260929421,500.0,0.00022191,2]
[315905886,1709260929802,500.0,0.00021917,2]
[315905887,1709260930085,500.0,0.00022191,2]
[315905888,1709260930175,1075.29,0.00021917,2]
[315905889,1709260930451,1075.29,0.00022191,2]
[315905890,1709260930963,925.72,0.00021917,2]
[315905891,1709260931249,925.72,0.00022191,2]
[315905892,1709260931609,500.0,0.00021917,2]
[315905893,1709260931866,500.0,0.00022191,2]
[315905894,1709260932862,1488.99,0.00021917,2]
[315905895,1709260932892,918.66,0.00022126,2]
[315905896,1709260933561,1488.99,0.00022191,2]
[315905897,1709260934653,772.11,0.00021917,2]
[315905898,1709260934924,500.0,0.00021917,2]
[315905899,1709260934958,772.11,0.00022191,2]
[315905900,1709260935142,500.0,0.00022191,2]
[315905901,1709260936042,521.06,0.00022126,2]
[315905902,1709260936521,2871.87,0.00021917,2]
[315905903,1709260936871,2871.87,0.00022191,2]
[315905904,1709260937531,500.0,0.00021917,2]
[315905905,1709260937878,500.0,0.00022191,2]
[315905906,1709260939780,500.0,0.00021917,2]
[315905907,1709260940062,500.0,0.00022191,2]
[315905908,1709260941409,605.72,0.00021917,2]
[315905909,1709260942100,605.72,0.00022191,2]
[315905910,1709260943016,500.0,0.00021917,2]
[315905911,1709260944007,500.0,0.00022191,2]
[315905912,1709260944042,500.0,0.00021917,2]
[315905913,1709260944816,500.0,0.00022191,2]
[315905914,1709260944851,160.15,0.00021918,2]
[315905915,1709260947069,2710.51,0.00021917,2]
[315905916,1709260947117,500.0,0.00021917,2]
[315905917,1709260947347,814.0,0.00022126,2]
[315905918,1709260947478,2710.51,0.00022191,2]
[315905919,1709260947508,500.0,0.00022191,2]
[315905920,1709260949705,513.31,0.00021917,2]
[315905921,1709260950085,513.31,0.00022191,2]
[315905922,1709260951839,611.24,0.00021917,2]
[315905923,1709260952173,611.24,0.00022191,2]
[315905924,1709260955440,500.0,0.00021917,2]
[315905925,1709260955800,500.0,0.00022191,2]
[315905926,1709260955838,500.0,0.00021917,2]
[315905927,1709260955911,500.0,0.00021917,2]
[315905928,1709260956169,500.0,0.00022191,2]
[315905929,1709260956198,500.0,0.00022191,2]
[315905930,1709260956257,500.0,0.00021917,2]
[315905931,1709260956555,500.0,0.00022191,2]
[315905932,1709260957391,1281.87,0.00021917,2]
[315905933,1709260957675,1281.87,0.00022191,2]
[315905934,1709260958199,500.0,0.00021917,2]
[315905935,1709260958709,500.0,0.00022191,2]
[315905936,1709260958866,2681.21,0.00021917,2]
[315905937,1709260959277,2681.21,0.00022191,2]
[315905938,1709260960918,4484.44,0.00022126,2]
[315905939,1709260961844,500.0,0.00022126,2]
[315905940,1709260962016,500.0,0.00021917,2]
[315905941,1709260962303,500.0,0.00022191,2]
[315905942,1709260963568,1018.42,0.00021917,2]
[315905943,1709260963829,1018.42,0.00022191,2]
[315905944,1709260964950,500.0,0.00021917,2]
[315905945,1709260965030,500.0,0.00022191,2]
[315905946,1709260966065,6378.06,0.00021917,2]
[315905947,1709260966726,6378.06,0.00022191,2]
[315905948,1709260967321,500.0,0.00021917,2]
[315905949,1709260967674,500.0,0.00022191,2]
[315905950,1709260970400,156.29198457,0.00021918,2]
[315905951,1709260971417,1549.09,0.00021917,2]
[315905952,1709260971744,610.66,0.00021917,2]
[315905953,1709260971802,1549.09,0.00022191,2]
[315905954,1709260972111,610.66,0.00022191,2]
[315905955,1709260972999,500.0,0.00022126,2]
[315905956,1709260973162,500.0,0.00021917,2]
[315905957,1709260973407,500.0,0.00021917,2]
[315905958,1709260973564,500.0,0.00022191,2]
[315905959,1709260973736,500.0,0.00022191,2]
[315905960,1709260973771,500.0,0.00021917,2]
[315905961,1709260974195,500.0,0.00022191,2]
[315905962,1709260974226,500.0,0.00021917,2]
[315905963,1709260974611,318.15163356,0.00022191,2]
[315905964,1709260974739,5543.18,0.00021917,2]
[315905965,1709260975714,678.12,0.00022126,2]
[315905966,1709260975752,5543.18,0.00022191,2]
[315905967,1709260977490,500.0,0.00021917,2]
[315905968,1709260978005,500.0,0.00022191,2]
[315905969,1709260979459,1000.0,0.000222,2]
[315905970,1709260979497,500.0,0.00021917,2]
[315905971,1709260979790,500.0,0.00021917,2]
[315905972,1709260979862,500.0,0.00022191,2]
[315905973,1709260980140,500.0,0.00022191,2]
[315905974,1709260980685,500.0,0.00021917,2]
[315905975,1709260981033,500.0,0.00022191,2]
[315905976,1709260982706,6871.62,0.00021917,2]
[315905977,1709260982998,6871.62,0.00022191,2]
[315905978,1709260983542,500.0,0.00021917,2]
[315905979,1709260983862,500.0,0.00022191,2]
[315905980,1709260984373,500.0,0.00021917,2]
[315905981,1709260984848,1139.84,0.00021917,2]
[315905982,1709260984913,500.41155708,0.00022191,2]
[315905983,1709260985191,1139.84,0.00022191,2]
[315905984,1709260986952,818.14,0.00022126,2]
[315905985,1709260988927,690.34,0.00021917,2]
[315905986,1709260988959,500.0,0.00021917,2]
[315905987,1709260989200,500.0,0.00022191,2]
[315905988,1709260989950,690.34,0.00022191,2]
[315905989,1709260990065,153.41,0.00019492,2]
[315905990,1709260992042,876.37,0.00021917,2]
[315905991,1709260992318,876.37,0.00022191,2]
[315905992,1709260992746,500.0,0.00021917,2]
[315905993,1709260993042,500.0,0.00022191,2]
[315905994,1709260993934,500.0,0.00021917,2]
[315905995,1709260994563,500.0,0.00022191,2]
[315905996,1709260994616,512.86,0.00022126,2]
[315905997,1709260995287,500.0,0.00021917,2]
[315905998,1709260995660,500.0,0.00022191,2]
[315905999,1709260997309,200.0,0.00022021,2]
[315906000,1709260997779,200.0,0.00022022,2]
[315906001,1709260997810,4605.11,0.00021917,2]
[315906002,1709260998112,4605.11,0.00022191,2]
[315906003,1709260998734,200.0,0.00022022,2]
[315906004,1709260999476,500.0,0.00021917,2]
[315906005,1709260999768,500.0,0.00022191,2]
[315906006,1709261000157,200.0,0.00022022,2]
[315906007,1709261000571,200.0,0.00022022,2]
[315906008,1709261000780,500.0,0.00021917,2]
[315906009,1709261001046,298.22781752,0.00022191,2]
[315906010,1709261001079,200.0,0.00022022,2]
[315906011,1709261001492,200.0,0.00022022,2]
[315906012,1709261002099,534.94,0.00021917,2]
[315906013,1709261002153,1243.21,0.00022126,2]
[315906014,1709261002346,534.94,0.00022191,2]
[315906015,1709261003342,500.0,0.00021917,2]
[315906016,1709261003726,500.0,0.00022191,2]
[315906017,1709261003906,1104.62,0.00021917,2]
[315906018,1709261004159,500.0,0.00021917,2]
[315906019,1709261004398,500.0,0.00022191,2]
[315906020,1709261004602,500.0,0.00021917,2]
[315906021,1709261004641,1104.62,0.00022191,2]
[315906022,1709261005188,500.0,0.00022191,2]
[315906023,1709261005417,500.0,0.00021917,2]
[315906024,1709261006058,500.0,0.00022191,2]
[315906025,1709261009923,520.07,0.00021917,2]
[315906026,1709261010183,520.07,0.00022191,2]
[315906027,1709261010936,500.0,0.00022126,2]
[315906028,1709261011216,446.80199884,0.00021917,2]
[315906029,1709261012380,155.77,0.00021918,2]
[315906030,1709261013710,500.0,0.00022126,2]
[315906031,1709261013741,2088.9,0.00021917,2]
[315906032,1709261013999,2088.9,0.00022191,2]
[315906033,1709261014706,800.0,0.00022021,2]
[315906034,1709261015128,800.0,0.00022022,2]
[315906035,1709261015584,800.0,0.00022022,2]
[315906036,1709261016069,1311.02,0.00021917,2]
[315906037,1709261016364,1311.02,0.00022191,2]
[315906038,1709261016518,800.0,0.00022022,2]
[315906039,1709261016924,800.0,0.00022022,2]
[315906040,1709261017221,500.0,0.00021917,2]
[315906041,1709261017778,800.0,0.00022022,2]
[315906042,1709261017830,1022.18,0.00021917,2]
[315906043,1709261017904,588.42510421,0.00022191,2]
[315906044,1709261017940,800.0,0.00022022,2]
[315906045,1709261017986,1022.18,0.00022191,2]
[315906046,1709261018047,500.0,0.00021917,2]
[315906047,1709261018241,800.0,0.00022022,2]
[315906048,1709261018289,500.0,0.00022191,2]
[315906049,1709261018675,800.0,0.00022022,2]
[315906050,1709261019412,554.08,0.00021917,2]
[315906051,1709261019455,497.40021531,0.00021917,2]
[315906052,1709261019623,800.0,0.00022022,2]
[315906053,1709261019795,1512.82,0.00022126,2]
[315906054,1709261019939,554.08,0.00022191,2]
[315906055,1709261020785,500.0,0.00021917,2]
[315906056,1709261021310,500.0,0.00022191,2]
[315906057,1709261021827,534.1,0.00022126,2]
[315906058,1709261022653,500.0,0.00021917,2]
[315906059,1709261022718,500.0,0.00021917,2]
[315906060,1709261023052,500.0,0.00022191,2]
[315906061,1709261023844,500.0,0.00022191,2]
[315906062,1709261026635,500.0,0.00021917,2]
[315906063,1709261027265,500.0,0.00022191,2]
[315906064,1709261028481,500.0,0.00021917,2]
[315906065,1709261028985,500.0,0.00022191,2]
[315906066,1709261029024,500.0,0.00021917,2]
[315906067,1709261029189,500.0,0.00022191,2]
[315906068,1709261029685,500.0,0.00021917,2]
[315906069,1709261029952,500.0,0.00022191,2]
[315906070,1709261029990,500.0,0.00021917,2]
[315906071,1709261031029,500.0,0.00022191,2]
[315906072,1709261031162,837.78,0.00021917,2]
[315906073,1709261031314,18739.19,0.00022126,2]
[315906074,1709261031428,837.78,0.00022191,2]
[315906075,1709261031961,517.07624855,0.00021917,2]
[315906076,1709261034292,500.0,0.00021917,2]
[315906077,1709261034664,500.0,0.00022191,2]
[315906078,1709261035035,500.0,0.00021917,2]
[315906079,1709261035355,500.0,0.00022191,2]
[315906080,1709261036488,1012.74,0.00021917,2]
[315906081,1709261036921,1012.74,0.00022191,2]
[315906082,1709261036973,500.0,0.00021917,2]
[315906083,1709261037253,500.0,0.00022191,2]
[315906084,1709261037633,514.40211081,0.00021917,2]
[315906085,1709261038564,500.0,0.00021917,2]
[315906086,1709261039039,500.0,0.00022126,2]
[315906087,1709261039252,500.0,0.00021917,2]
[315906088,1709261039505,433.46532563,0.00022191,2]
[315906089,1709261039666,200.0,0.00022022,2]
[315906090,1709261039944,500.0,0.00021917,2]
[315906091,1709261040217,500.0,0.00022191,2]
[315906092,1709261040574,500.0,0.00021917,2]
[315906093,1709261040787,530.49039664,0.00021917,2]
[315906094,1709261040926,500.0,0.00022191,2]
[315906095,1709261041243,570.79,0.00021917,2]
[315906096,1709261041450,959.53,0.00022126,2]
[315906097,1709261041515,570.79,0.00022191,2]
[315906098,1709261043159,200.0,0.00022021,2]